bitfinex-derivatives/quotes_ETHF0:USTF0_20250905
["timestamp","ask_amount","ask_price","bid_price","bid_amount"]
[1757115900558,0.2134,4311.7,4311.6,0.7113]
[1757115900758,1.33504347,4311.7,4311.6,0.7113]
[1757115906160,0.5432,4311.5,4311.4,0.749]
[1757115906367,0.8641,4311.5,4311.4,0.749]
[1757115907274,0.8641,4311.5,4311.4,0.233]
[1757115908063,0.3209,4311.4,4311.3,3.2078]
[1757115908261,0.736,4310.9,4310.8,0.7113]
[1757115908471,0.736,4310.9,4310.8,0.9443]
[1757115917672,0.736,4310.9,4310.7,3.2078]
[1757115917871,1.33484597,4310.8,4310.7,3.4207]
[1757115918180,1.33484597,4310.8,4310.7,3.7238]
[1757115918480,1.33475058,4310.8,4310.7,3.7238]
[1757115919875,0.736,4310.8,4310.7,3.9568]
[1757115923279,0.736,4310.8,4310.7,4.1562]
[1757115932302,0.736,4310.8,4310.7,3.4408]
[1757115932677,0.736,4310.8,4310.7,3.2078]
[1757115932986,1.33397348,4310.8,4310.7,3.4408]
[1757115933275,0.1217,4310.5,4310.2,3.2078]
[1757115933480,0.71,4310.3,4310.2,3.7003]
[1757115933785,1.30789935,4310.3,4310.2,3.9333]
[1757115935283,1.30789935,4310.3,4310.2,4.1327]
[1757115935481,1.30789935,4310.3,4310.2,3.2078]
[1757115935680,1.30789935,4310.3,4310.1,0.233]
[1757115935975,0.3977,4309.8,4309.7,3.2078]
[1757115936179,0.71,4309.8,4309.7,3.9333]
[1757115936480,0.71,4309.8,4309.7,3.2078]
[1757115936683,0.71,4309.8,4309.7,3.9333]
[1757115937284,0.3977,4309.6,4309.5,0.233]
[1757115937478,1.30750126,4309.6,4309.5,0.233]
[1757115937985,1.30750126,4309.6,4309.5,0.7255]
[1757115940072,0.71,4309.6,4309.5,0.7255]
[1757115942086,0.71,4309.6,4309.5,0.233]
[1757115942483,0.3977,4309.2,4309.1,3.4074]
[1757115942785,0.71,4309.2,4309.1,3.8398]
[1757115942981,0.71,4309.2,4309.1,3.2078]
[1757115943288,0.71,4309.2,4309.1,3.4408]
[1757115943887,0.71,4309.2,4309.1,3.2078]
[1757115944187,0.3977,4308.8,4308.6,3.2078]
[1757115944388,0.71,4308.7,4308.6,3.6404]
[1757115944785,0.71,4308.7,4308.6,4.1327]
[1757115944986,0.71,4308.7,4308.6,3.4408]
[1757115945186,0.71,4308.7,4308.6,4.1327]
[1757115945586,0.71,4308.7,4308.6,3.7337]
[1757115945789,0.71,4308.7,4308.6,4.1327]
[1757115946092,0.71,4308.7,4308.6,3.5007]
[1757115946291,0.71,4308.7,4308.6,4.1327]
[1757115950296,0.71,4308.7,4308.6,3.2078]
[1757115954995,0.71,4308.7,4308.6,3.9259]
[1757115956284,0.71,4308.7,4308.6,3.7246]
[1757115959293,0.71,4308.7,4308.6,3.9259]
[1757115959497,0.2048,4308.7,4308.6,3.9259]
[1757115959897,0.2048,4308.7,4308.6,0.7181]
[1757115960795,0.3097,4308.9,4308.6,0.7181]
[1757115961093,0.2001,4308.8,4308.7,0.7181]
[1757115961293,0.7216,4308.8,4308.7,0.7181]
[1757115963198,1.31761605,4308.8,4308.7,0.7181]
[1757115977008,0.79611605,4308.8,4308.7,0.7181]
[1757115977208,0.59601605,4308.8,4308.7,0.7181]
[1757115977408,0.59601605,4308.8,4308.7,0.95019]
[1757115977810,0.59601605,4308.8,4308.7,0.7181]
[1757115981912,0.59601605,4308.8,4308.7,4.7181]
[1757115983305,3.2078,4309.5,4308.8,0.2927]
[1757115983510,3.7286,4309.5,4309.4,0.6962]
[1757115983712,4.32653434,4309.5,4309.4,0.6962]
[1757115984108,1.11873434,4309.5,4309.4,0.6962]
[1757115985502,7.92723434,4309.5,4308.0,0.1196]
[1757115985811,3.2078,4308.5,4308.0,0.1196]
[1757115986003,0.59793434,4308.4,4308.0,0.1196]
[1757115986204,0.59793434,4308.3,4307.6,0.2927]
[1757115986412,3.2078,4308.0,4307.7,0.2025]
[1757115986607,0.59793434,4307.9,4307.8,0.2927]
[1757115986807,0.59793434,4307.9,4307.0,0.3221]
[1757115987016,0.59793434,4307.8,4307.1,0.2025]
[1757115987213,0.59793434,4307.7,4307.2,0.2025]
[1757115987414,0.59793434,4307.6,4307.5,0.1196]
[1757115987614,0.59793434,4307.6,4307.5,0.4123]
[1757115993022,4.59793434,4307.6,4307.0,0.1196]
[1757115993218,3.2078,4307.4,4306.6,0.2927]
[1757115993418,0.83793434,4307.3,4306.6,0.2927]
[1757115993613,0.59793434,4307.2,4306.6,0.2927]
[1757115993814,0.59793434,4307.1,4306.5,0.3221]
[1757115994014,0.59793434,4307.0,4306.5,0.1196]
[1757115994220,0.83793434,4306.9,4306.5,0.1196]
[1757115994515,0.24,4306.9,4306.6,0.2927]
[1757115995319,0.24,4306.9,4306.6,0.2025]
[1757115995517,0.24,4306.9,4306.6,0.2927]
[1757115995710,0.24,4306.9,4306.6,0.2025]
[1757115995911,3.2078,4307.4,4307.0,0.1196]
[1757115996116,3.2078,4307.4,4307.3,0.4035]
[1757115996322,3.2078,4307.4,4307.3,0.6962]
[1757115996618,3.2078,4308.0,4307.5,0.1196]
[1757115996824,0.58789766,4307.9,4307.8,0.6962]
[1757115997018,3.4488,4308.3,4308.2,0.4952]
[1757115997212,4.03675151,4308.3,4308.2,0.4952]
[1757116001225,4.03575151,4308.3,4308.2,0.6962]
[1757116001427,3.2078,4308.3,4308.2,0.6962]
[1757116001629,0.24,4308.8,4308.2,4.4035]
[1757116001828,0.24,4308.8,4308.7,0.6962]
[1757116003827,0.24,4308.9,4308.8,0.2927]
[1757116004124,0.24,4308.9,4308.8,0.6962]
[1757116005635,3.2078,4309.0,4308.8,0.6962]
[1757116005921,3.4478,4309.0,4308.9,0.6962]
[1757116009534,3.4478,4309.0,4308.9,0.4952]
[1757116010030,8.26776969,4309.0,4308.1,0.3016]
[1757116010229,3.2078,4308.3,4308.1,0.3016]
[1757116010432,0.24,4308.2,4308.1,0.3016]
[1757116012430,0.82813579,4308.2,4308.1,0.3016]
[1757116013334,0.82813579,4308.2,4308.1,0.4967]
[1757116017047,0.82813579,4308.2,4308.1,0.3016]
[1757116017234,0.82813579,4308.2,4307.6,0.3016]
[1757116017541,0.58813579,4308.1,4308.0,0.4192]
[1757116017741,0.58813579,4308.1,4308.0,0.6143]
[1757116018237,0.58813579,4308.1,4308.0,0.4192]
[1757116018435,0.58813579,4308.1,4307.5,0.3147]
[1757116018635,0.239,4308.0,4307.7,0.3016]
[1757116018836,0.58813579,4307.9,4307.6,0.3016]
[1757116019036,3.2078,4307.7,4307.3,0.3016]
[1757116019242,0.82713579,4307.6,4307.2,0.3016]
[1757116019538,0.58813579,4307.5,4307.2,0.3016]
[1757116019838,0.239,4307.4,4307.2,0.3016]
[1757116020040,0.58813579,4307.3,4307.2,0.3016]
[1757116020841,0.58813579,4307.3,4307.0,0.1196]
[1757116021141,0.239,4307.2,4307.1,0.3016]
[1757116021334,0.82713579,4307.2,4307.1,0.3016]
[1757116021734,0.82713579,4307.2,4307.1,0.4967]
[1757116023242,0.82713579,4307.2,4307.1,0.3016]
[1757116024265,4.03493579,4307.2,4307.1,0.3016]
[1757116027340,4.03493579,4307.2,4307.1,0.4967]
[1757116027540,3.79593579,4307.2,4307.1,0.4967]
[1757116027742,0.58813579,4307.2,4307.1,4.7069]
[1757116027950,0.239,4307.5,4307.4,0.7069]
[1757116028137,0.87267096,4307.5,4307.4,0.7069]
[1757116028449,0.87267096,4307.5,4307.4,0.3016]
[1757116030744,0.87267096,4307.5,4307.4,0.4967]
[1757116035041,0.87267096,4307.5,4307.4,0.7069]
[1757116035645,0.87167096,4307.5,4307.4,0.7069]
[1757116036047,0.87167096,4307.5,4307.0,0.1196]
[1757116036352,0.87167096,4307.4,4307.1,0.3016]
[1757116036550,0.63367096,4307.3,4307.2,0.4967]
[1757116036848,0.87167096,4307.3,4307.2,0.4967]
[1757116037437,0.63367096,4307.3,4307.2,0.4967]
[1757116037645,0.63367096,4307.3,4307.0,0.1196]
[1757116037646,0.238,4307.3,4307.1,0.3016]
[1757116037943,3.84147096,4307.2,4307.1,0.3016]
[1757116038143,3.84147096,4307.2,4307.1,0.4967]
[1757116039346,3.84147096,4307.2,4307.1,0.7069]
[1757116042140,4.07947096,4307.2,4307.1,0.7069]
[1757116043840,3.84147096,4307.2,4307.1,0.7069]
[1757116044043,3.84147096,4307.2,4307.1,4.7069]
[1757116044248,0.63367096,4307.2,4307.1,4.7069]
[1757116044442,0.63367096,4307.2,4307.1,4.4053]
[1757116044644,0.63518465,4307.3,4307.2,0.3183]
[1757116044844,0.238,4307.4,4307.3,0.7353]
[1757116045039,0.63520881,4307.6,4307.5,0.8609]
[1757116045250,0.63521007,4307.6,4307.5,0.8609]
[1757116045549,0.63521007,4307.6,4307.5,4.8609]
[1757116046350,0.63521007,4307.6,4307.5,5.15756856]
[1757116046955,0.63521007,4307.6,4307.5,1.15756856]
[1757116049656,0.31361007,4307.6,4307.5,1.15756856]
[1757116050349,1.95994148,4308.8,4308.4,0.7353]
[1757116050350,4.75348956,4308.8,4308.4,0.7353]
[1757116050560,0.4894,4308.7,4308.6,0.417]
[1757116050853,0.4894,4308.7,4308.6,0.7353]
[1757116051060,0.6915,4308.7,4308.6,0.7353]
[1757116052157,3.2078,4308.8,4308.6,0.7353]
[1757116052360,0.238,4308.7,4308.6,0.7353]
[1757116053257,0.4316,4308.7,4308.6,0.7353]
[1757116055459,0.1936,4308.7,4308.6,0.7353]
[1757116055964,0.4894,4308.7,4308.6,0.7353]
[1757116057460,0.1936,4308.7,4308.6,0.7353]
[1757116057860,3.2078,4308.8,4308.6,0.417]
[1757116058067,3.6972,4309.3,4309.2,0.7353]
[1757116058261,3.2078,4309.3,4309.2,0.7353]
[1757116059368,3.6972,4309.3,4309.2,0.7353]
[1757116059570,3.8993,4309.3,4309.2,0.7353]
[1757116064463,0.6915,4309.3,4309.2,0.7353]
[1757116069575,0.237,4309.4,4309.3,0.6883]
[1757116069769,0.4462,4309.4,4309.3,0.6883]
[1757116070072,0.7228,4309.4,4309.3,0.6883]
[1757116072269,1.31985736,4309.4,4309.3,0.6883]
[1757116073368,0.309,4309.3,4308.6,0.2972]
[1757116073569,0.7228,4308.7,4308.6,0.4933]
[1757116074075,0.7228,4308.7,4308.6,0.1961]
[1757116074576,0.7228,4308.7,4308.6,0.4933]
[1757116075178,1.31935258,4308.7,4308.6,0.4933]
[1757116077479,1.31935258,4308.7,4308.1,0.237]
[1757116077480,1.31935258,4308.7,4308.3,0.2972]
[1757116077782,0.8501,4308.5,4308.4,0.79525614]
[1757116078184,1.44716962,4308.5,4308.4,0.79525614]
[1757116078482,1.44716962,4308.5,4308.4,0.99025614]
[1757116079580,1.31986962,4308.5,4308.4,0.99025614]
[1757116079976,1.31986962,4308.5,4308.4,0.99047992]
[1757116080380,1.11526962,4308.5,4308.4,0.99047992]
[1757116080679,0.59706962,4308.5,4308.4,0.99047992]
[1757116083882,0.80626962,4308.5,4308.4,0.99047992]
[1757116084084,1.11526962,4308.5,4308.4,0.99047992]
[1757116084784,0.59706962,4308.5,4308.4,0.99047992]
[1757116086785,1.11526962,4308.5,4308.4,0.99047992]
[1757116087987,0.80626962,4308.5,4308.4,0.99047992]
[1757116088178,0.59706962,4308.5,4308.4,4.99047992]
[1757116088488,0.5182,4309.0,4308.9,0.6883]
[1757116088676,1.11600614,4309.0,4308.9,0.99047992]
[1757116089386,1.32060614,4309.0,4308.9,0.99047992]
[1757116089682,1.44790614,4309.0,4308.9,0.99047992]
[1757116090283,1.44790614,4309.0,4308.9,0.30217992]
[1757116093491,1.44790614,4309.0,4308.9,0.49827992]
[1757116093678,1.44790614,4309.0,4308.9,0.99047992]
[1757116093885,1.32060614,4309.0,4308.9,0.99047992]
[1757116094590,1.44790614,4309.0,4308.9,0.99047992]
[1757116095987,1.44790614,4309.0,4308.9,0.6883]
[1757116096790,1.32060614,4309.0,4308.9,0.6883]
[1757116097095,1.32060614,4309.0,4308.9,0.97826964]
[1757116097096,0.59780614,4309.0,4308.9,0.97826964]
[1757116097490,1.11600614,4309.0,4308.9,0.97826964]
[1757116099899,1.11600614,4309.0,4308.9,0.6883]
[1757116100100,1.11600614,4309.0,4308.9,0.97831532]
[1757116101200,1.30880614,4309.0,4308.9,0.97831532]
[1757116101497,1.42930614,4309.0,4308.5,3.5088]
[1757116101700,0.7011,4308.7,4308.6,0.59106811]
[1757116101902,1.29890614,4308.7,4308.6,0.79946811]
[1757116102205,1.29890614,4308.7,4308.6,0.29006811]
[1757116106811,0.98530614,4308.7,4308.2,0.537]
[1757116106998,0.7011,4307.8,4307.7,0.2084]
[1757116107196,1.29890614,4307.8,4307.7,0.79956301]
[1757116107602,1.29890614,4307.8,4307.7,1.00826301]
[1757116110704,1.29890614,4307.8,4307.7,1.00436629]
[1757116114317,0.7011,4307.8,4307.7,1.00436629]
[1757116115411,0.7011,4307.8,4307.7,0.79566629]
[1757116116118,0.7011,4307.8,4307.7,1.00436629]
[1757116118209,0.7011,4307.8,4307.7,0.7181]
[1757116125222,0.7011,4307.8,4307.7,1.00414503]
[1757116125616,3.2078,4308.3,4307.7,1.00414503]
[1757116125823,0.3136,4308.4,4308.1,0.7181]
[1757116126120,1.10536038,4308.3,4308.2,0.7181]
[1757116126520,1.29816038,4308.3,4308.2,0.7181]
[1757116127820,0.59706038,4308.3,4308.2,0.7181]
[1757116128122,3.9089,4309.0,4308.9,0.4171]
[1757116128322,4.31262644,4309.0,4308.3,3.2078]
[1757116128619,0.8379,4308.0,4307.9,0.7057]
[1757116128921,0.8379,4308.0,4307.9,0.99183058]
[1757116129122,0.8379,4308.0,4307.9,1.19043058]
[1757116129723,0.7179,4308.0,4307.9,1.19043058]
[1757116135821,0.7179,4308.0,4307.9,1.19071465]
[1757116136316,1.31607254,4308.0,4307.9,1.19071465]
[1757116137729,1.43607254,4308.0,4307.9,1.19071465]
[1757116140226,1.43607254,4308.0,4307.9,0.28641465]
[1757116141633,1.43607254,4308.0,4307.9,0.49761465]
[1757116141833,1.43607254,4308.0,4307.9,0.80211465]
[1757116144932,1.43607254,4308.0,4307.9,1.00071465]
[1757116145231,1.31607254,4308.0,4307.9,1.00071465]
[1757116145437,1.31607254,4308.0,4307.9,1.00078686]
[1757116146137,1.43607254,4308.0,4307.9,0.28648686]
[1757116146535,5.43607254,4308.0,4307.9,0.28648686]
[1757116146738,0.7179,4307.2,4307.1,0.7143]
[1757116146936,1.31607254,4307.2,4307.1,0.7143]
[1757116147137,0.59817254,4307.2,4307.1,0.7143]
[1757116147341,0.59817254,4307.2,4307.1,0.4098]
[1757116147634,0.2992,4307.4,4307.2,0.3045]
[1757116147834,0.5095,4307.4,4307.3,0.4098]
[1757116148034,0.5095,4307.4,4307.3,0.7143]
[1757116148238,0.59833659,4307.4,4307.3,0.7143]
[1757116148836,0.2992,4307.7,4307.3,0.4098]
[1757116149037,0.59830048,4307.6,4307.5,0.8421]
[1757116149236,1.31620048,4307.6,4307.5,0.5157]
[1757116150746,1.31620048,4307.6,4307.5,0.7143]
[1757116151046,1.31620048,4307.6,4307.5,0.8421]
[1757116152051,0.59830048,4307.6,4307.5,0.8421]
[1757116152439,1.10780048,4307.6,4307.5,0.8421]
[1757116154743,0.59830048,4307.6,4307.5,0.8421]
[1757116155050,0.5095,4308.2,4308.1,0.7143]
[1757116155246,0.7179,4308.2,4308.1,0.7143]
[1757116155445,1.31652533,4308.2,4308.1,0.7143]
[1757116162152,1.31676027,4308.2,4308.1,0.7143]
[1757116164856,1.31676027,4308.2,4308.1,0.7143]
[1757116174051,1.31676027,4308.2,4308.1,0.5157]
[1757116174263,1.31676027,4308.2,4307.8,3.2078]
[1757116174264,0.3131,4307.9,4307.8,3.2078]
[1757116174566,1.32206027,4307.9,4307.8,3.2078]
[1757116174860,1.32206027,4307.9,4307.5,0.235]
[1757116175066,0.7232,4307.6,4307.5,0.7312]
[1757116175459,0.7232,4307.6,4307.5,0.235]
[1757116175765,0.1278,4308.0,4307.1,3.2078]
[1757116175766,0.851,4307.5,4307.1,3.2078]
[1757116175964,0.7232,4307.4,4307.3,0.7091]
[1757116178763,0.3131,4307.3,4307.1,3.2078]
[1757116178959,1.00882194,4307.2,4307.1,3.2078]
[1757116179154,1.32192194,4307.2,4306.6,0.3016]
[1757116179362,0.851,4307.0,4306.9,0.235]
[1757116179568,1.44972194,4307.0,4306.9,0.235]
[1757116180067,1.44972194,4307.0,4306.9,0.5366]
[1757116181476,1.44972194,4307.0,4306.9,0.7312]
[1757116181659,1.44972194,4307.0,4306.9,0.9441]
[1757116181960,1.32192194,4307.0,4306.9,0.9441]
[1757116182563,0.5177,4307.0,4306.9,4.1519]
[1757116184371,0.7232,4307.0,4306.9,4.1519]
[1757116187468,0.5177,4307.0,4306.9,4.1519]
[1757116190274,0.2046,4307.0,4306.9,4.1519]
[1757116191069,0.724,4307.0,4306.9,3.9169]
[1757116191276,0.852,4307.0,4306.9,4.1519]
[1757116191472,0.852,4307.0,4306.9,0.9441]
[1757116191873,0.724,4307.0,4306.9,0.9441]
[1757116196674,0.852,4307.0,4306.9,0.4962]
[1757116197681,0.724,4307.0,4306.9,0.6937]
[1757116200384,0.2046,4307.0,4306.9,0.6937]
[1757116201679,4.58548956,4308.0,4306.9,0.6937]
[1757116201990,0.1953,4307.2,4307.1,0.7225]
[1757116202173,1.10536074,4307.2,4307.1,0.7225]
[1757116202376,0.59826074,4307.2,4307.1,0.7225]
[1757116202578,0.3118,4307.3,4307.1,0.4072]
[1757116202874,1.10536074,4307.2,4307.1,0.4072]
[1757116203071,1.10536074,4307.2,4307.1,0.7225]
[1757116208093,1.31296074,4307.2,4307.1,0.7225]
[1757116222908,1.31296074,4307.2,4307.1,0.9575]
[1757116226114,0.59826074,4307.2,4307.1,5.18967]
[1757116226408,0.5204,4307.6,4307.5,0.8484]
[1757116226611,0.5204,4307.6,4307.5,1.0834]
[1757116226916,0.7321,4307.6,4307.5,1.0834]
[1757116227214,1.33160463,4307.6,4307.5,0.9614]
[1757116234524,1.33160463,4307.6,4307.5,1.0834]
[1757116243934,1.33160463,4307.6,4307.5,0.9614]
[1757116257239,0.80070463,4307.6,4307.5,1.0851]
[1757116257443,0.80070463,4307.6,4307.5,1.37817951]
[1757116257742,1.10360463,4307.6,4307.5,1.37817951]
[1757116259049,0.59950463,4307.6,4307.5,1.61032951]
[1757116259344,0.5102,4307.9,4307.8,0.7221]
[1757116259647,1.10938966,4307.9,4307.8,1.24917951]
[1757116261744,1.10938966,4307.9,4307.8,1.248972]
[1757116266046,1.31358966,4307.9,4307.8,1.248972]
[1757116267247,0.7144,4307.9,4307.8,1.248972]
[1757116267450,1.31294671,4307.9,4307.8,1.248972]
[1757116268443,0.7144,4307.9,4307.8,1.248972]
[1757116272256,0.7144,4307.9,4307.8,0.526872]
[1757116272854,0.7144,4307.9,4307.8,1.036172]
[1757116274559,0.7144,4307.9,4307.8,1.248972]
[1757116276065,1.31259783,4307.9,4307.8,1.248972]
[1757116276364,0.7144,4307.9,4307.8,1.248972]
[1757116277459,1.31261586,4307.9,4307.8,1.248972]
[1757116279867,1.31261586,4307.9,4307.8,1.2487997]
[1757116287075,1.31261586,4307.9,4307.8,1.24898363]
[1757116288970,1.24184586,4307.9,4307.4,3.2078]
[1757116289176,0.826,4307.0,4306.9,0.5195]
[1757116289375,0.7036,4307.0,4306.9,0.9528]
[1757116299490,0.7036,4307.0,4306.9,4.1606]
[1757116303691,0.5073,4307.0,4306.9,4.1606]
[1757116309691,0.4038,4308.0,4307.9,0.7224]
[1757116310097,1.23291925,4308.0,4307.9,0.7224]
[1757116310400,1.65311925,4308.0,4307.9,0.7224]
[1757116310696,1.65317358,4308.0,4307.9,0.7224]
[1757116311700,1.42104358,4308.0,4307.9,0.7224]
[1757116312200,1.42104358,4308.0,4307.9,0.2063]
[1757116312494,1.42104358,4308.0,4307.8,0.234]
[1757116312697,1.29854358,4307.9,4307.8,0.234]
[1757116312991,1.29854358,4307.9,4307.8,0.5493]
[1757116313200,1.29854358,4307.9,4307.8,0.234]
[1757116319799,1.29854358,4307.9,4307.8,0.7556]
[1757116321005,1.29854358,4307.9,4307.8,0.4403]
[1757116321409,1.29854358,4307.9,4307.8,0.234]
[1757116325605,1.29854358,4307.9,4307.8,0.7556]
[1757116329512,1.29854358,4307.9,4307.8,0.9564]
[1757116334908,0.59704358,4307.9,4307.8,0.9564]
[1757116335109,0.2977,4308.5,4307.8,0.6411]
[1757116335311,0.59704358,4308.4,4307.8,0.6411]
[1757116335718,0.59704358,4308.3,4307.9,0.3153]
[1757116335921,0.4953,4308.3,4308.2,0.7224]
[1757116336115,1.30095548,4308.3,4308.2,0.7224]
[1757116342930,1.30095548,4308.3,4308.0,0.234]
[1757116343128,0.401,4308.1,4308.0,0.7548]
[1757116343433,1.30465548,4308.1,4308.0,0.7548]
[1757116343734,1.30465548,4308.1,4308.0,0.948]
[1757116346135,1.30465548,4308.1,4308.0,0.234]
[1757116350531,1.30465548,4308.1,4308.0,0.5524]
[1757116350732,1.30465548,4308.1,4308.0,0.7548]
[1757116351839,1.30465548,4308.1,4308.0,0.948]
[1757116354039,1.30465548,4308.1,4307.6,3.5262]
[1757116354233,0.7052,4307.7,4307.6,3.2078]
[1757116354635,0.7052,4307.7,4307.6,3.4102]
[1757116354836,0.7052,4307.7,4307.6,3.7286]
[1757116355247,0.7052,4307.7,4307.6,3.9218]
[1757116359046,0.7052,4307.7,4307.6,3.7286]
[1757116359545,0.7052,4307.7,4307.6,3.9218]
[1757116362356,1.30497615,4307.7,4307.6,3.9218]
[1757116371055,0.5326,4308.5,4308.4,0.4179]
[1757116371255,1.36453054,4308.5,4308.4,0.7211]
[1757116371555,1.56933054,4308.5,4308.4,0.7211]
[1757116371755,1.33721053,4308.5,4308.4,0.7211]
[1757116392079,0.59981053,4308.5,4308.4,0.7211]
[1757116392281,0.5326,4308.7,4308.6,0.4179]
[1757116392482,3.2078,4309.3,4308.6,3.8597]
[1757116392680,0.4166,4308.7,4308.6,3.8597]
[1757116392980,0.7374,4308.7,4308.6,4.1629]
[1757116393182,0.7374,4308.7,4308.6,3.9289]
[1757116393571,0.2118,4308.7,4308.6,3.9289]
[1757116394083,0.2118,4308.8,4308.7,0.3032]
[1757116394284,0.5326,4308.8,4308.7,0.7211]
[1757116396479,0.5326,4308.8,4308.7,0.9551]
[1757116397481,3.2078,4309.3,4309.0,0.1197]
[1757116397685,3.2078,4309.3,4309.2,0.7211]
[1757116397881,3.7404,4309.3,4309.2,0.7211]
[1757116399088,0.2118,4309.3,4309.2,0.7211]
[1757116399291,0.5227,4309.3,4309.2,0.7211]
[1757116399590,0.5,4309.4,4309.2,0.4179]
[1757116399787,0.5,4309.4,4309.3,0.7012]
[1757116400287,1.007,4309.4,4309.3,0.7012]
[1757116400491,1.2,4309.4,4309.3,0.7012]
[1757116401286,1.2,4309.4,4309.3,0.5004]
[1757116401891,1.2,4309.4,4309.1,0.234]
[1757116402190,0.3891,4309.2,4309.1,0.4408]
[1757116402390,0.7,4309.2,4309.1,0.4408]
[1757116402792,0.7,4309.2,4309.1,0.9352]
[1757116405090,0.3891,4308.7,4308.6,3.2078]
[1757116405296,0.1245,4308.5,4308.3,3.2078]
[1757116405487,0.7,4308.4,4308.3,3.7082]
[1757116407485,0.7,4308.4,4308.3,3.909]
[1757116413188,0.3109,4309.2,4308.8,0.2936]
[1757116413395,1.52732098,4309.1,4309.0,0.7012]
[1757116413587,1.29523098,4309.1,4309.0,0.5004]
[1757116413790,1.29523098,4309.1,4309.0,0.2068]
[1757116416495,1.29523098,4309.1,4309.0,0.7012]
[1757116416893,1.29523098,4309.1,4309.0,0.2068]
[1757116417095,1.29523098,4309.1,4308.5,0.1179]
[1757116417297,1.41973098,4309.0,4308.9,0.5004]
[1757116418894,1.41973098,4309.0,4308.9,0.2068]
[1757116419198,1.10883098,4309.0,4308.3,3.7354]
[1757116419392,0.7,4308.4,4308.3,3.9422]
[1757116419796,0.7,4308.4,4308.3,4.143]
[1757116420101,0.7,4308.4,4308.3,3.6486]
[1757116420303,0.7,4308.4,4308.3,3.9422]
[1757116421295,0.7,4308.4,4307.0,0.1179]
[1757116421296,0.5136,4308.0,4307.9,0.2936]
[1757116421500,0.8245,4308.0,4307.9,0.5004]
[1757116421803,1.420053,4308.0,4307.9,0.7012]
[1757116422392,0.8245,4308.0,4307.9,0.7012]
[1757116424907,1.41976612,4308.0,4307.9,0.7012]
[1757116425406,0.8245,4308.0,4307.9,0.7012]
[1757116425603,0.7,4308.0,4307.9,0.7012]
[1757116425801,0.7,4308.7,4308.6,0.2068]
[1757116425997,1.29517997,4308.7,4308.6,0.7012]
[1757116440211,1.29517997,4308.7,4307.6,0.3151]
[1757116440212,0.3081,4307.9,4307.6,0.3151]
[1757116440513,0.1188,4308.0,4307.6,0.3151]
[1757116440514,0.7314,4307.7,4307.6,0.7078]
[1757116440714,1.32657997,4307.7,4307.6,0.7078]
[1757116453321,0.59517997,4307.7,4307.6,0.7078]
[1757116453824,0.59517997,4307.9,4307.6,0.7078]
[1757116454125,1.11477997,4307.8,4307.7,0.7078]
[1757116457724,0.59517997,4307.8,4307.7,0.7078]
[1757116457930,0.59517997,4308.0,4307.7,0.3927]
[1757116458125,0.59517997,4307.9,4307.7,0.3927]
[1757116458428,0.59517997,4307.8,4307.7,0.3927]
[1757116458727,0.2907,4307.9,4307.8,0.3141]
[1757116458920,1.0846211,4307.9,4307.8,0.7289]
[1757116462223,1.2832211,4307.9,4307.8,0.7289]
[1757116466133,1.0846211,4307.9,4307.8,0.7289]
[1757116466432,0.4881,4308.9,4308.8,0.4148]
[1757116466623,1.08473118,4308.9,4308.8,0.7289]
[1757116467427,0.5,4309.4,4309.3,0.4148]
[1757116467620,0.5,4309.4,4309.3,0.7289]
[1757116467823,1.09648238,4309.4,4309.3,0.7289]
[1757116468328,1.38718238,4309.4,4309.3,0.7289]
[1757116468527,1.58458238,4309.4,4309.3,0.7289]
[1757116469033,0.9881,4309.4,4309.3,0.7289]
[1757116469632,1.1867,4309.4,4309.3,0.7289]
[1757116476631,0.9881,4309.4,4309.3,0.7289]
[1757116478539,1.1867,4309.4,4309.3,0.7289]
[1757116482950,0.9881,4309.4,4309.3,0.7289]
[1757116483449,0.9881,4309.4,4309.3,3.9367]
[1757116484249,1.1867,4309.4,4309.3,3.9367]
[1757116488251,1.1867,4309.4,4309.3,3.2078]
[1757116488455,1.1867,4309.4,4309.3,3.4408]
[1757116488653,1.1867,4309.4,4309.3,3.2078]
[1757116491155,1.1867,4309.4,4309.3,3.5151]
[1757116491355,1.1867,4309.4,4309.3,3.7161]
[1757116495554,1.1867,4309.4,4309.3,3.9166]
[1757116496254,1.78198123,4309.4,4309.3,3.9166]
[1757116500766,1.58338123,4309.4,4309.3,3.9166]
[1757116503673,1.09528123,4309.4,4309.3,3.9166]
[1757116505373,1.41088123,4309.4,4309.3,3.9166]
[1757116507876,1.09528123,4309.4,4309.3,3.9166]
[1757116510571,1.41088123,4309.4,4309.3,3.9166]
[1757116510776,1.62108123,4309.4,4309.3,3.9166]
[1757116512778,1.09528123,4309.4,4309.3,3.9166]
[1757116515479,1.62108123,4309.4,4309.3,3.9166]
[1757116521277,1.30548123,4309.4,4309.3,3.9166]
[1757116522684,1.59963197,4309.4,4309.3,3.9166]
[1757116522878,1.09603197,4309.4,4309.3,3.9166]
[1757116523883,1.29513197,4309.4,4309.3,3.9166]
[1757116525282,1.58853197,4309.4,4309.3,3.9166]
[1757116526585,1.29513197,4309.4,4309.3,3.9166]
[1757116527481,1.79323197,4309.4,4309.3,3.9166]
[1757116532076,1.79323197,4309.4,4309.3,0.201]
[1757116532280,1.79323197,4309.4,4309.2,0.233]
[1757116532484,1.29323197,4309.3,4309.2,0.233]
[1757116533088,1.29323197,4309.3,4308.7,0.3131]
[1757116533089,0.1229,4309.0,4308.7,0.3131]
[1757116533391,0.6972,4308.8,4308.7,0.7394]
[1757116533578,1.29323197,4308.8,4308.7,0.7394]
[1757116536589,1.29323197,4308.8,4308.7,0.943]
[1757116538090,0.59603197,4308.8,4308.7,0.943]
[1757116538992,1.08853197,4308.8,4308.7,0.943]
[1757116539390,0.4925,4308.8,4308.7,0.943]